[Event "*** Titled Tuesday Blitz"]
[Site "Chess.com"]
[Date "2018.05.01"]
[Round "6"]
[White "DrVelja"]
[Black "MattyDPerrine"]
[Result "1-0"]
[WhiteElo "2537"]
[BlackElo "2299"]
[TimeControl "180+2"]
[EndTime "14:23:26 PDT"]
[Termination "DrVelja won by resignation"]

1. e4 {[%clk 0:03:01.9]} 1... c5 {[%clk 0:02:57]} 2. Nf3 {[%clk 0:03:02.7]} 2...
e6 {[%clk 0:02:58]} 3. d4 {[%clk 0:03:03.8]} 3... cxd4 {[%clk 0:02:59.9]} 4.
Nxd4 {[%clk 0:03:05.3]} 4... Nc6 {[%clk 0:03:01.4]} 5. Nc3 {[%clk 0:03:05.2]}
5... Qc7 {[%clk 0:03:02.7]} 6. Be3 {[%clk 0:03:06.3]} 6... a6 {[%clk 0:03:04]}
7. Qf3 {[%clk 0:03:07.2]} 7... Nf6 {[%clk 0:03:04.7]} 8. O-O-O {[%clk
0:03:08.3]} 8... Ne5 {[%clk 0:02:49.9]} 9. Qg3 {[%clk 0:03:08.4]} 9... d6 {[%clk
0:02:51.3]} 10. f4 {[%clk 0:03:03.5]} 10... Nc4 {[%clk 0:02:46.7]} 11. Bxc4
{[%clk 0:03:01.9]} 11... Qxc4 {[%clk 0:02:48.6]} 12. e5 {[%clk 0:02:56.4]} 12...
Nd5 {[%clk 0:02:30.8]} 13. Nxd5 {[%clk 0:02:38]} 13... Qxd5 {[%clk 0:02:31.9]}
14. Kb1 {[%clk 0:02:15.9]} 14... dxe5 {[%clk 0:02:13.1]} 15. fxe5 {[%clk
0:02:15.2]} 15... Bd7 {[%clk 0:02:14.4]} 16. Nf5 {[%clk 0:01:39.3]} 16... Qe4
{[%clk 0:02:08]} 17. Nxg7+ {[%clk 0:01:07.2]} 17... Bxg7 {[%clk 0:02:07.3]} 18.
Qxg7 {[%clk 0:01:09.1]} 18... O-O-O {[%clk 0:02:01.6]} 19. Bb6 {[%clk
0:01:10.5]} 19... Rdf8 {[%clk 0:01:58.2]} 20. Qg3 {[%clk 0:00:28.4]} 20... Rhg8
{[%clk 0:01:43.9]} 21. Qc3+ {[%clk 0:00:29.6]} 21... Qc6 {[%clk 0:01:37.2]} 22.
Bc5 {[%clk 0:00:30.2]} 22... Rd8 {[%clk 0:01:25.8]} 23. Rd6 {[%clk 0:00:28.1]}
23... Qxg2 {[%clk 0:01:14.6]} 24. Rhd1 {[%clk 0:00:28.6]} 24... Bc6 {[%clk
0:01:10.9]} 25. Bb6 {[%clk 0:00:29.4]} 25... Rxd6 {[%clk 0:01:04.3]} 26. exd6
{[%clk 0:00:31.3]} 26... Kb8 {[%clk 0:00:24.9]} 27. d7 {[%clk 0:00:30.6]} 27...
Bxd7 {[%clk 0:00:21.2]} 28. Qc7+ {[%clk 0:00:32.1]} 28... Ka8 {[%clk 0:00:22.4]}
29. Qxd7 {[%clk 0:00:33.9]} 29... Qxh2 {[%clk 0:00:16.6]} 30. Qxf7 {[%clk
0:00:28.4]} 30... Rc8 {[%clk 0:00:10.4]} 31. c3 {[%clk 0:00:15.9]} 31... Qe2
{[%clk 0:00:11.2]} 32. Qf1 {[%clk 0:00:15.3]} 32... Qe4+ {[%clk 0:00:11]} 33.
Qd3 {[%clk 0:00:16.8]} 33... Qc6 {[%clk 0:00:11.9]} 34. Bf2 {[%clk 0:00:14.7]}
34... h5 {[%clk 0:00:10.3]} 35. Qe3 {[%clk 0:00:15.8]} 35... Kb8 {[%clk
0:00:10.4]} 36. Qa7+ {[%clk 0:00:13.1]} 36... Kc7 {[%clk 0:00:11.8]} 37. Qc5
{[%clk 0:00:13.6]} 37... Qxc5 {[%clk 0:00:08]} 38. Bxc5 {[%clk 0:00:15.5]} 38...
h4 {[%clk 0:00:08.8]} 39. Rh1 {[%clk 0:00:16.1]} 39... Rh8 {[%clk 0:00:08.8]}
40. Rh3 {[%clk 0:00:17.5]} 40... Kc6 {[%clk 0:00:07]} 41. Bf2 {[%clk 0:00:18.9]}
41... Rf8 {[%clk 0:00:08.4]} 42. Bxh4 {[%clk 0:00:19.6]} 42... Rh8 {[%clk
0:00:10]} 43. Rh2 {[%clk 0:00:21]} 43... Rh5 {[%clk 0:00:10.3]} 44. Bg3 {[%clk
0:00:22.3]} 44... Rg5 {[%clk 0:00:12]} 45. Bb8 {[%clk 0:00:23.4]} 45... Rg8
{[%clk 0:00:12.3]} 46. Be5 {[%clk 0:00:23.2]} 46... Kd5 {[%clk 0:00:13.1]} 47.
Re2 {[%clk 0:00:24.1]} 47... b5 {[%clk 0:00:11.5]} 48. Kc2 {[%clk 0:00:24.8]}
48... Rg5 {[%clk 0:00:12.4]} 49. Bd4 {[%clk 0:00:26.1]} 49... e5 {[%clk
0:00:13.4]} 50. Be3 {[%clk 0:00:25.9]} 50... Rg3 {[%clk 0:00:13.2]} 51. b3
{[%clk 0:00:24.7]} 51... Rf3 {[%clk 0:00:13.3]} 52. Bd2 {[%clk 0:00:22.5]} 52...
Rh3 {[%clk 0:00:09.3]} 53. Re3 {[%clk 0:00:23.8]} 53... Rh2 {[%clk 0:00:09.9]}
54. Rd3+ {[%clk 0:00:25]} 54... Ke4 {[%clk 0:00:11.3]} 55. c4 {[%clk 0:00:25.7]}
55... bxc4 {[%clk 0:00:12.4]} 56. bxc4 {[%clk 0:00:27.6]} 56... Rh7 {[%clk
0:00:12.9]} 57. Rc3 {[%clk 0:00:25.5]} 57... Rc7 {[%clk 0:00:13.5]} 58. c5
{[%clk 0:00:25.7]} 58... Kd5 {[%clk 0:00:13.4]} 59. Be3 {[%clk 0:00:27.2]} 59...
Kc6 {[%clk 0:00:11.3]} 60. Kd3 {[%clk 0:00:28.1]} 60... Rh7 {[%clk 0:00:08.5]}
61. Ke4 {[%clk 0:00:28.7]} 61... Rh2 {[%clk 0:00:10]} 62. a3 {[%clk 0:00:27.3]}
62... Rh5 {[%clk 0:00:10.5]} 63. Rc1 {[%clk 0:00:26.3]} 63... Rh4+ {[%clk
0:00:06.8]} 64. Kxe5 {[%clk 0:00:27.2]} 64... Ra4 {[%clk 0:00:08.7]} 65. Rc3
{[%clk 0:00:28.1]} 65... a5 {[%clk 0:00:04.8]} 66. Bd4 {[%clk 0:00:28.3]} 66...
Kc7 {[%clk 0:00:04.5]} 67. c6 {[%clk 0:00:29.2]} 67... Kc8 {[%clk 0:00:02.6]}
68. c7 {[%clk 0:00:30.4]} 1-0

[Event "*** Titled Tuesday Blitz"]
[Site "Chess.com"]
[Date "2018.05.01"]
[Round "6"]
[White "amatatanav"]
[Black "EmreDedebas"]
[Result "1/2-1/2"]
[WhiteElo "2402"]
[BlackElo "2388"]
[TimeControl "180+2"]
[EndTime "14:23:59 PDT"]
[Termination "Game drawn by agreement"]

1. e4 {[%clk 0:03:01.9]} 1... c5 {[%clk 0:03:00]} 2. Ne2 {[%clk 0:03:02.5]} 2...
e6 {[%clk 0:02:57]} 3. d4 {[%clk 0:03:01]} 3... cxd4 {[%clk 0:02:58.9]} 4. Nxd4
{[%clk 0:03:02.2]} 4... Qb6 {[%clk 0:03:00.5]} 5. Nc3 {[%clk 0:02:37.1]} 5...
Bc5 {[%clk 0:03:00.1]} 6. Be3 {[%clk 0:02:33.8]} 6... Nc6 {[%clk 0:02:55.1]} 7.
Na4 {[%clk 0:02:26.4]} 7... Qa5+ {[%clk 0:02:53.8]} 8. c3 {[%clk 0:02:27.3]}
8... Bxd4 {[%clk 0:02:39.4]} 9. Bxd4 {[%clk 0:02:29.2]} 9... Nxd4 {[%clk
0:02:32.7]} 10. Qxd4 {[%clk 0:02:31.1]} 10... e5 {[%clk 0:02:34.3]} 11. Qb4
{[%clk 0:02:30.8]} 11... Qxb4 {[%clk 0:02:32.9]} 12. cxb4 {[%clk 0:02:32.7]}
12... Nf6 {[%clk 0:02:34.4]} 13. Nc3 {[%clk 0:02:26.5]} 13... d6 {[%clk
0:02:33.5]} 14. O-O-O {[%clk 0:02:23.3]} 14... Ke7 {[%clk 0:02:31.6]} 15. Bc4
{[%clk 0:02:07.7]} 15... Bd7 {[%clk 0:02:17.8]} 16. Nd5+ {[%clk 0:01:59.3]}
16... Nxd5 {[%clk 0:02:16.6]} 17. Bxd5 {[%clk 0:01:59]} 17... Rac8+ {[%clk
0:02:16.1]} 18. Kb1 {[%clk 0:01:59.6]} 18... Rc7 {[%clk 0:02:14.3]} 19. Rd2
{[%clk 0:01:55.5]} 19... Bc6 {[%clk 0:02:02.9]} 20. Rhd1 {[%clk 0:01:49.5]}
20... Bxd5 {[%clk 0:01:56.6]} 21. Rxd5 {[%clk 0:01:51.4]} 21... Rd8 {[%clk
0:01:57]} 22. R1d3 {[%clk 0:01:45.3]} 22... Rc4 {[%clk 0:01:46.9]} 23. Rb5
{[%clk 0:01:38]} 23... b6 {[%clk 0:01:41.3]} 24. f3 {[%clk 0:01:35.1]} 24...
Rdc8 {[%clk 0:01:33]} 25. a4 {[%clk 0:01:10.2]} 25... R8c6 {[%clk 0:01:19.1]}
26. a5 {[%clk 0:01:02.2]} 26... a6 {[%clk 0:01:08]} 27. Rxb6 {[%clk 0:00:47.8]}
27... Rxb6 {[%clk 0:01:07.9]} 28. axb6 {[%clk 0:00:49.7]} 28... Rxb4 {[%clk
0:01:08.8]} 29. Rc3 {[%clk 0:00:39.5]} 29... Rxb6 {[%clk 0:01:08.6]} 30. Rc7+
{[%clk 0:00:40.6]} 30... Ke6 {[%clk 0:01:09]} 31. Kc2 {[%clk 0:00:22.5]} 31...
h5 {[%clk 0:01:02.7]} 32. Kc3 {[%clk 0:00:21.9]} 32... Rb5 {[%clk 0:00:51.8]}
33. Ra7 {[%clk 0:00:19]} 33... Rc5+ {[%clk 0:00:46.5]} 34. Kd2 {[%clk
0:00:20.2]} 34... a5 {[%clk 0:00:42.1]} 35. Ra8 {[%clk 0:00:18.5]} 35... g6
{[%clk 0:00:40.5]} 36. Ra6 {[%clk 0:00:18.6]} 36... f5 {[%clk 0:00:40.6]} 37.
exf5+ {[%clk 0:00:17.8]} 37... gxf5 {[%clk 0:00:42.5]} 38. Ra8 {[%clk
0:00:18.4]} 38... h4 {[%clk 0:00:36.6]} 39. Rh8 {[%clk 0:00:16.1]} 39... Rc4
{[%clk 0:00:36.6]} 40. b3 {[%clk 0:00:14.5]} 40... Rd4+ {[%clk 0:00:34.6]} 41.
Kc3 {[%clk 0:00:15.4]} 41... a4 {[%clk 0:00:16.1]} 42. b4 {[%clk 0:00:14.5]}
42... Kd5 {[%clk 0:00:17.6]} 43. Ra8 {[%clk 0:00:14.2]} 43... Rc4+ {[%clk
0:00:18.3]} 44. Kd3 {[%clk 0:00:12]} 44... Rxb4 {[%clk 0:00:19.8]} 45. Ra5+
{[%clk 0:00:12.1]} 45... Ke6 {[%clk 0:00:20.3]} 46. Ra8 {[%clk 0:00:11.6]} 46...
Rb2 {[%clk 0:00:18]} 47. Rxa4 {[%clk 0:00:10.9]} 47... Rxg2 {[%clk 0:00:16.6]}
48. Rxh4 {[%clk 0:00:12]} 48... Kd5 {[%clk 0:00:17.3]} 49. Rh8 {[%clk
0:00:12.2]} 49... f4 {[%clk 0:00:09.9]} 50. Rh6 {[%clk 0:00:07]} 50... Rf2
{[%clk 0:00:09.5]} 51. Rh3 {[%clk 0:00:07]} 51... Kc5 {[%clk 0:00:03.6]} 52. Ke4
{[%clk 0:00:06.9]} 52... Re2+ {[%clk 0:00:02.1]} 53. Kf5 {[%clk 0:00:07.4]}
53... Kd4 {[%clk 0:00:02.9]} 54. Rh6 {[%clk 0:00:05.6]} 54... d5 {[%clk
0:00:04.1]} 55. h4 {[%clk 0:00:06.4]} 55... Re3 {[%clk 0:00:04]} 56. Ra6 {[%clk
0:00:06.7]} 56... Rxf3 {[%clk 0:00:04.4]} 57. Ra4+ {[%clk 0:00:07.7]} 57... Ke3
{[%clk 0:00:03.2]} 58. Kxe5 {[%clk 0:00:09.6]} 58... Rg3 {[%clk 0:00:03.6]} 59.
Rxf4 {[%clk 0:00:07.7]} 59... Rh3 {[%clk 0:00:04.2]} 60. Rg4 {[%clk 0:00:07.2]}
60... Kf3 {[%clk 0:00:05.4]} 61. Rd4 {[%clk 0:00:06.8]} 61... Kg3 {[%clk
0:00:06.5]} 62. Kf5 {[%clk 0:00:06.1]} 62... Rxh4 {[%clk 0:00:06.5]} 63. Rd3+
{[%clk 0:00:07.1]} 63... Kf2 {[%clk 0:00:07.2]} 64. Kg5 {[%clk 0:00:07.9]} 64...
Rc4 {[%clk 0:00:04.8]} 65. Rd2+ {[%clk 0:00:08.3]} 65... Ke3 {[%clk 0:00:05.7]}
66. Rxd5 {[%clk 0:00:09.6]} 66... Ke4 {[%clk 0:00:06.4]} 67. Ra5 {[%clk
0:00:09.9]} 67... Rd4 {[%clk 0:00:07.9]} 68. Ra6 {[%clk 0:00:08.5]} 68... Rd5+
{[%clk 0:00:08.8]} 69. Kf6 {[%clk 0:00:09.3]} 69... Kd4 {[%clk 0:00:09]} 1/2-1/2

[Event "*** Titled Tuesday Blitz"]
[Site "Chess.com"]
[Date "2018.05.01"]
[Round "6"]
[White "michaelq2d5"]
[Black "Oleksandr_Bortnyk"]
[Result "1-0"]
[WhiteElo "2719"]
[BlackElo "2780"]
[TimeControl "180+2"]
[EndTime "14:24:25 PDT"]
[Termination "michaelq2d5 won on time"]

1. d4 {[%clk 0:03:01.9]} 1... Nf6 {[%clk 0:02:59.6]} 2. c4 {[%clk 0:03:03.3]}
2... b6 {[%clk 0:03:00.2]} 3. Nc3 {[%clk 0:03:04.2]} 3... Bb7 {[%clk 0:03:01.5]}
4. a3 {[%clk 0:03:05.6]} 4... g6 {[%clk 0:03:01.1]} 5. d5 {[%clk 0:03:05.4]}
5... Bg7 {[%clk 0:03:00.7]} 6. e4 {[%clk 0:03:06.3]} 6... e5 {[%clk 0:03:01]} 7.
Bd3 {[%clk 0:03:05.9]} 7... O-O {[%clk 0:03:01]} 8. Nge2 {[%clk 0:03:04]} 8...
a5 {[%clk 0:02:59.1]} 9. Rb1 {[%clk 0:03:03.7]} 9... Na6 {[%clk 0:02:54.7]} 10.
O-O {[%clk 0:03:01.9]} 10... Nc5 {[%clk 0:02:47.9]} 11. Bc2 {[%clk 0:03:02.9]}
11... a4 {[%clk 0:02:49.3]} 12. f3 {[%clk 0:03:03.7]} 12... Ba6 {[%clk 0:02:49]}
13. Nxa4 {[%clk 0:03:01.4]} 13... Nxa4 {[%clk 0:02:47.4]} 14. Bxa4 {[%clk
0:03:02.9]} 14... Bxc4 {[%clk 0:02:46.5]} 15. Bb3 {[%clk 0:03:01.6]} 15... Ba6
{[%clk 0:02:19.7]} 16. Be3 {[%clk 0:02:51.8]} 16... c5 {[%clk 0:02:20.7]} 17.
dxc6 {[%clk 0:02:44.4]} 17... dxc6 {[%clk 0:02:21.1]} 18. Re1 {[%clk 0:02:45.9]}
18... Qc7 {[%clk 0:02:09.8]} 19. Qc2 {[%clk 0:02:42.9]} 19... Rad8 {[%clk
0:02:04.9]} 20. Rbd1 {[%clk 0:02:39.8]} 20... c5 {[%clk 0:01:04.6]} 21. Nc3
{[%clk 0:02:19.9]} 21... c4 {[%clk 0:01:04.4]} 22. Ba4 {[%clk 0:02:21.2]} 22...
Rd3 {[%clk 0:00:39.7]} 23. Rxd3 {[%clk 0:02:21.7]} 23... cxd3 {[%clk 0:00:41]}
24. Qb3 {[%clk 0:02:22.9]} 24... Bc4 {[%clk 0:00:34.6]} 25. Qb4 {[%clk 0:01:55]}
25... Rb8 {[%clk 0:00:30.2]} 26. Bb5 {[%clk 0:01:49.6]} 26... Bxb5 {[%clk
0:00:25.8]} 27. Qxb5 {[%clk 0:01:50.9]} 27... Qd6 {[%clk 0:00:17.1]} 28. Rd1
{[%clk 0:01:46.9]} 28... Rd8 {[%clk 0:00:18.3]} 29. Qxb6 {[%clk 0:01:14.9]}
29... Qxb6 {[%clk 0:00:18.7]} 30. Bxb6 {[%clk 0:01:16.8]} 30... Rb8 {[%clk
0:00:19.9]} 31. Bc5 {[%clk 0:01:16.5]} 31... Rxb2 {[%clk 0:00:19]} 32. Rxd3
{[%clk 0:01:17.4]} 32... h5 {[%clk 0:00:16.1]} 33. Nd5 {[%clk 0:01:06.3]} 33...
Rb1+ {[%clk 0:00:13.6]} 34. Kf2 {[%clk 0:01:07.4]} 34... Rb2+ {[%clk 0:00:15.5]}
35. Kf1 {[%clk 0:01:08.4]} 35... h4 {[%clk 0:00:15.4]} 36. Nxf6+ {[%clk
0:00:59.7]} 36... Bxf6 {[%clk 0:00:17.3]} 37. a4 {[%clk 0:00:51.8]} 37... Bg5
{[%clk 0:00:18.3]} 38. h3 {[%clk 0:00:40.7]} 38... Rb1+ {[%clk 0:00:18.3]} 39.
Ke2 {[%clk 0:00:37.5]} 39... Rb2+ {[%clk 0:00:20.2]} 40. Kf1 {[%clk 0:00:38.7]}
40... Rb1+ {[%clk 0:00:21.4]} 41. Ke2 {[%clk 0:00:33.4]} 41... Rb2+ {[%clk
0:00:22.7]} 42. Kd1 {[%clk 0:00:30.7]} 42... Rb1+ {[%clk 0:00:23.2]} 43. Ke2
{[%clk 0:00:29.4]} 43... Rb2+ {[%clk 0:00:24.4]} 44. Ke1 {[%clk 0:00:30]} 44...
Rxg2 {[%clk 0:00:24]} 45. a5 {[%clk 0:00:31.1]} 45... Ra2 {[%clk 0:00:24.4]} 46.
Bb4 {[%clk 0:00:24.8]} 46... Kg7 {[%clk 0:00:16.8]} 47. Kd1 {[%clk 0:00:22.4]}
47... Ra4 {[%clk 0:00:14.9]} 48. Bc3 {[%clk 0:00:19.2]} 48... Kf6 {[%clk
0:00:03.7]} 49. Kc2 {[%clk 0:00:19.1]} 49... Rc4 {[%clk 0:00:03.4]} 50. Kb3
{[%clk 0:00:19.4]} 50... Rc8 {[%clk 0:00:04.3]} 51. Rd5 {[%clk 0:00:18.3]} 51...
Bf4 {[%clk 0:00:04.2]} 52. a6 {[%clk 0:00:16.1]} 52... Ra8 {[%clk 0:00:04.6]}
53. Ra5 {[%clk 0:00:17.3]} 53... Ke6 {[%clk 0:00:04.4]} 54. Kc4 {[%clk
0:00:15.6]} 54... Kd6 {[%clk 0:00:05.6]} 55. a7 {[%clk 0:00:14]} 55... Kc6
{[%clk 0:00:03.4]} 56. Bb4 {[%clk 0:00:09.4]} 56... Be3 {[%clk 0:00:03.5]} 57.
Ra6+ {[%clk 0:00:09.1]} 57... Kb7 {[%clk 0:00:04.1]} 58. Rf6 {[%clk 0:00:10.7]}
58... Kxa7 {[%clk 0:00:02.3]} 59. Rxf7+ {[%clk 0:00:11.1]} 59... Kb6 {[%clk
0:00:03.7]} 60. Rf6+ {[%clk 0:00:12.6]} 60... Kc7 {[%clk 0:00:04.5]} 61. Bd6+
{[%clk 0:00:10.6]} 61... Kd7 {[%clk 0:00:05.4]} 62. Bxe5 {[%clk 0:00:12.1]}
62... g5 {[%clk 0:00:06]} 63. Bc3 {[%clk 0:00:09.6]} 63... Bf4 {[%clk
0:00:05.7]} 64. Rf5 {[%clk 0:00:07.3]} 64... Ke6 {[%clk 0:00:05.8]} 65. Rb5
{[%clk 0:00:08]} 65... Rc8+ {[%clk 0:00:05.1]} 66. Kd3 {[%clk 0:00:09.1]} 66...
Rd8+ {[%clk 0:00:05.8]} 67. Bd4 {[%clk 0:00:09.7]} 67... Ra8 {[%clk 0:00:06.5]}
68. Rb6+ {[%clk 0:00:09.6]} 68... Kd7 {[%clk 0:00:07.6]} 69. e5 {[%clk
0:00:10.8]} 69... Bh2 {[%clk 0:00:03.9]} 70. Rg6 {[%clk 0:00:09.5]} 70... Ra4
{[%clk 0:00:02.1]} 71. Rxg5 {[%clk 0:00:08.2]} 71... Ke6 {[%clk 0:00:04]} 72.
Ke4 {[%clk 0:00:06.9]} 72... Bg3 {[%clk 0:00:04.1]} 73. Rg6+ {[%clk 0:00:06.8]}
73... Kf7 {[%clk 0:00:05.5]} 74. Rf6+ {[%clk 0:00:08.2]} 74... Ke7 {[%clk
0:00:06.3]} 75. Kd5 {[%clk 0:00:08.8]} 75... Kd7 {[%clk 0:00:04]} 76. Rf7+
{[%clk 0:00:09.4]} 76... Ke8 {[%clk 0:00:05.3]} 77. e6 {[%clk 0:00:11]} 77...
Ra2 {[%clk 0:00:03.9]} 78. Bc5 {[%clk 0:00:11.6]} 78... Rd2+ {[%clk 0:00:04.8]}
79. Kc4 {[%clk 0:00:12.7]} 79... Rc2+ {[%clk 0:00:04.3]} 80. Kb5 {[%clk
0:00:13.1]} 80... Kd8 {[%clk 0:00:02.3]} 81. Kc6 {[%clk 0:00:13]} 1-0

[Event "*** Titled Tuesday Blitz"]
[Site "Chess.com"]
[Date "2018.05.01"]
[Round "6"]
[White "SCIM"]
[Black "nihalsarin"]
[Result "1-0"]
[WhiteElo "2407"]
[BlackElo "2722"]
[TimeControl "180+2"]
[EndTime "14:25:06 PDT"]
[Termination "SCIM won by resignation"]

1. d4 {[%clk 0:03:01.9]} 1... Nf6 {[%clk 0:02:59.3]} 2. c4 {[%clk 0:03:01.4]}
2... g6 {[%clk 0:03:00.3]} 3. f3 {[%clk 0:02:59.7]} 3... Nh5 {[%clk 0:02:57.7]}
4. Nh3 {[%clk 0:02:54.3]} 4... Bg7 {[%clk 0:02:52.8]} 5. Nc3 {[%clk 0:02:52.7]}
5... d6 {[%clk 0:02:53.3]} 6. Nf2 {[%clk 0:02:52.4]} 6... e5 {[%clk 0:02:54.1]}
7. d5 {[%clk 0:02:47.6]} 7... O-O {[%clk 0:02:52.1]} 8. e4 {[%clk 0:02:45.3]}
8... f5 {[%clk 0:02:53.2]} 9. Be3 {[%clk 0:02:41.9]} 9... a5 {[%clk 0:02:49.4]}
10. Qc2 {[%clk 0:02:40.2]} 10... Na6 {[%clk 0:02:50]} 11. O-O-O {[%clk
0:02:38.5]} 11... Nb4 {[%clk 0:02:46.7]} 12. Qb3 {[%clk 0:02:33.6]} 12... b6
{[%clk 0:02:41.3]} 13. Be2 {[%clk 0:02:25.9]} 13... Nf4 {[%clk 0:02:39.2]} 14.
Bf1 {[%clk 0:02:05.5]} 14... Bd7 {[%clk 0:02:35.7]} 15. g3 {[%clk 0:02:00.9]}
15... Nh5 {[%clk 0:02:35.2]} 16. Be2 {[%clk 0:02:01.1]} 16... f4 {[%clk
0:02:34.8]} 17. gxf4 {[%clk 0:01:45.6]} 17... Nxf4 {[%clk 0:02:36.7]} 18. Bxf4
{[%clk 0:01:43]} 18... Rxf4 {[%clk 0:02:38.5]} 19. Kb1 {[%clk 0:01:36.1]} 19...
Qh4 {[%clk 0:02:37.2]} 20. Nd3 {[%clk 0:01:29.6]} 20... Nxd3 {[%clk 0:02:35.8]}
21. Rxd3 {[%clk 0:01:30]} 21... Bh3 {[%clk 0:02:23.9]} 22. Nb5 {[%clk
0:01:23.6]} 22... Rc8 {[%clk 0:02:14.1]} 23. Rc1 {[%clk 0:01:07.9]} 23... Bg2
{[%clk 0:02:06.5]} 24. Na7 {[%clk 0:00:59.5]} 24... Rcf8 {[%clk 0:02:05.9]} 25.
Nb5 {[%clk 0:00:59.7]} 25... R4f7 {[%clk 0:02:04.3]} 26. Qc2 {[%clk 0:00:49]}
26... Bh6 {[%clk 0:01:58.2]} 27. Rcd1 {[%clk 0:00:47.8]} 27... Bf4 {[%clk
0:01:48.8]} 28. c5 {[%clk 0:00:32.3]} 28... bxc5 {[%clk 0:01:47.5]} 29. Ra3
{[%clk 0:00:24]} 29... Qxh2 {[%clk 0:01:41.8]} 30. Rxa5 {[%clk 0:00:23.6]} 30...
h5 {[%clk 0:01:43.1]} 31. Ra7 {[%clk 0:00:22.8]} 31... h4 {[%clk 0:01:41.5]} 32.
Rxc7 {[%clk 0:00:23.5]} 32... Rxc7 {[%clk 0:01:29.2]} 33. Nxc7 {[%clk
0:00:23.9]} 33... Qg3 {[%clk 0:01:28.7]} 34. Ne6 {[%clk 0:00:24.6]} 34... Rf7
{[%clk 0:01:10.7]} 35. Qa4 {[%clk 0:00:23.3]} 35... Re7 {[%clk 0:00:47.1]} 36.
Qa8+ {[%clk 0:00:22.2]} 36... Kh7 {[%clk 0:00:48.4]} 37. Qf8 {[%clk 0:00:20]}
37... Bg5 {[%clk 0:00:45.7]} 38. Qc8 {[%clk 0:00:16.9]} 38... h3 {[%clk
0:00:41.7]} 39. Nf8+ {[%clk 0:00:17.6]} 39... Kg7 {[%clk 0:00:41.7]} 40. Ne6+
{[%clk 0:00:18.2]} 40... Kh7 {[%clk 0:00:42.4]} 41. Nf8+ {[%clk 0:00:18.8]}
41... Kh6 {[%clk 0:00:42.9]} 42. Ne6 {[%clk 0:00:19.6]} 42... h2 {[%clk
0:00:36.5]} 43. Qh8+ {[%clk 0:00:17.3]} 43... Rh7 {[%clk 0:00:33.5]} 44. Qf8+
{[%clk 0:00:17.8]} 44... Kh5 {[%clk 0:00:34.9]} 45. f4+ {[%clk 0:00:16.8]} 45...
Bf3 {[%clk 0:00:29]} 46. Nxg5 {[%clk 0:00:15.3]} 46... Bxe2 {[%clk 0:00:27]} 47.
Nxh7 {[%clk 0:00:15.9]} 47... Qd3+ {[%clk 0:00:12.5]} 48. Rxd3 {[%clk
0:00:13.2]} 48... Bxd3+ {[%clk 0:00:14.4]} 49. Kc1 {[%clk 0:00:13.6]} 49...
h1=Q+ {[%clk 0:00:16.3]} 50. Kd2 {[%clk 0:00:14.8]} 50... Qf1 {[%clk 0:00:17.3]}
51. Nf6+ {[%clk 0:00:14.3]} 51... Kh4 {[%clk 0:00:18.8]} 52. Qh6+ {[%clk
0:00:15.4]} 52... Kg3 {[%clk 0:00:19.7]} 53. Qg5+ {[%clk 0:00:16.5]} 53... Kf3
{[%clk 0:00:18.6]} 54. Qg4+ {[%clk 0:00:16.6]} 54... Kf2 {[%clk 0:00:20]} 55.
Qh4+ {[%clk 0:00:17.1]} 55... Kg2 {[%clk 0:00:21.1]} 56. Qg4+ {[%clk 0:00:16.2]}
56... Kh2 {[%clk 0:00:21.5]} 57. Qh4+ {[%clk 0:00:15.7]} 57... Kg2 {[%clk
0:00:22.6]} 58. Qg4+ {[%clk 0:00:16]} 58... Kf2 {[%clk 0:00:23.5]} 59. fxe5
{[%clk 0:00:16.3]} 59... dxe5 {[%clk 0:00:18.7]} 60. Qh4+ {[%clk 0:00:17.2]}
60... Kg2 {[%clk 0:00:19.5]} 61. Qg4+ {[%clk 0:00:17.1]} 61... Kh2 {[%clk
0:00:20.6]} 62. Qh4+ {[%clk 0:00:15.4]} 62... Kg2 {[%clk 0:00:21.1]} 63. Qg5+
{[%clk 0:00:16.5]} 63... Kh2 {[%clk 0:00:21.1]} 64. Ng4+ {[%clk 0:00:16.6]}
64... Kh3 {[%clk 0:00:20.4]} 65. Qe3+ {[%clk 0:00:12.8]} 65... Kxg4 {[%clk
0:00:21.3]} 66. Qxd3 {[%clk 0:00:14.1]} 66... Qa1 {[%clk 0:00:21]} 67. Qe2+
{[%clk 0:00:14.2]} 67... Kg5 {[%clk 0:00:22.2]} 68. Qg2+ {[%clk 0:00:14.9]}
68... Kf6 {[%clk 0:00:23.4]} 69. Qf2+ {[%clk 0:00:15.8]} 69... Ke7 {[%clk
0:00:24.5]} 70. Qxc5+ {[%clk 0:00:16.4]} 70... Kf7 {[%clk 0:00:24.6]} 71. Qc7+
{[%clk 0:00:16.9]} 71... Kf6 {[%clk 0:00:24.7]} 72. Qd6+ {[%clk 0:00:18]} 72...
Kf7 {[%clk 0:00:26.2]} 73. Qe6+ {[%clk 0:00:19.2]} 73... Kf8 {[%clk 0:00:27.7]}
74. Qf6+ {[%clk 0:00:20]} 74... Kg8 {[%clk 0:00:27.3]} 75. Qxg6+ {[%clk
0:00:21.6]} 75... Kh8 {[%clk 0:00:28.3]} 76. Qf6+ {[%clk 0:00:22.8]} 76... Kg8
{[%clk 0:00:29.9]} 77. Qxe5 {[%clk 0:00:24.3]} 77... Qxa2 {[%clk 0:00:30.1]} 78.
d6 {[%clk 0:00:25.3]} 78... Qa4 {[%clk 0:00:30]} 79. Qd5+ {[%clk 0:00:24.1]}
79... Kg7 {[%clk 0:00:31.1]} 80. d7 {[%clk 0:00:25.2]} 80... Qb4+ {[%clk
0:00:32.6]} 81. Kc2 {[%clk 0:00:24.4]} 81... Qa4+ {[%clk 0:00:33.7]} 82. Kb1
{[%clk 0:00:22.4]} 82... Qa7 {[%clk 0:00:34.7]} 83. d8=Q {[%clk 0:00:18.9]}
83... Qg1+ {[%clk 0:00:36.6]} 84. Qd1 {[%clk 0:00:19.3]} 1-0